bitfinex/quotes_ETHUSD_20260308
["timestamp","ask_amount","ask_price","bid_price","bid_amount"]
[1772990336484,0.47880518,1941.7,1940.7,0.47987348]
[1772990336485,0.47880518,1941.5,1940.7,0.47987348]
[1772990337811,0.47880518,1941.5,1940.9,0.47987348]
[1772990339392,0.47880518,1941.3,1940.9,0.47987348]
[1772990339892,0.47880518,1941.3,1941.0,0.001]
[1772990341009,0.47880518,1941.3,1940.9,0.001]
[1772990341884,0.47880518,1941.1,1940.9,0.001]
[1772990343411,0.49165263,1941.3,1940.9,0.45246151]
[1772990343612,1.77946359,1941.3,1940.9,0.45246151]
[1772990344485,0.49165263,1941.2,1940.9,0.001]
[1772990345815,0.49165263,1941.2,1940.9,0.49283937]
[1772990349318,1.77952961,1941.2,1940.9,0.49283937]
[1772990349501,0.48285856,1941.1,1940.9,0.001]
[1772990350820,0.48285856,1941.1,1940.7,0.001]
[1772990351815,1.77085443,1941.0,1940.7,0.49283937]
[1772990353026,1.77285443,1941.0,1940.7,0.49283937]
[1772990353196,1.77285443,1941.0,1940.9,0.001]
[1772990353394,0.48485856,1941.0,1940.9,0.001]
[1772990353922,1.77285443,1941.0,1940.9,0.001]
[1772990370324,0.48285856,1940.9,1940.7,0.001]
[1772990371610,1.77098716,1940.8,1940.7,0.001]
[1772990376133,0.48285856,1940.8,1940.7,0.001]
[1772990376537,1.77873131,1940.9,1940.7,0.001]
[1772990376843,0.002,1941.0,1940.7,0.48268106]
[1772990377010,0.002,1941.3,1940.8,0.48168106]
[1772990377216,0.49061603,1941.2,1940.8,0.48168106]
[1772990377942,0.49061603,1941.2,1940.8,0.48278106]
[1772990378452,1.28792952,1941.1,1940.8,0.48278106]
[1772990380948,1.77852809,1941.2,1940.8,0.48278106]
[1772990386868,0.49461603,1941.1,1940.8,0.48278106]
[1772990388377,0.49061603,1940.9,1940.8,0.0011]
[1772990389266,0.49061603,1940.7,1940.5,0.001]
[1772990390463,0.001,1941.0,1940.6,0.48168106]
[1772990390867,0.001,1941.0,1940.8,0.48168106]
[1772990392076,3.16342895,1941.3,1940.8,0.48168106]
[1772990393376,3.16342895,1941.3,1940.9,0.48168106]
[1772990395279,0.49061603,1941.2,1940.8,0.48168106]
[1772990395650,1.77853395,1941.2,1940.8,0.48168106]
[1772990397385,0.49061603,1941.2,1940.9,0.48168106]
[1772990397591,1.28985062,1941.3,1940.9,0.48168106]
[1772990397753,1.78046665,1941.3,1940.9,0.48168106]
[1772990400209,1.78041293,1941.3,1941.0,0.48168106]
[1772990400972,0.49061603,1941.2,1940.8,1.76976921]
[1772990401506,0.49061603,1941.2,1940.7,1.28924983]
[1772990401813,0.49061603,1941.2,1940.7,0.0011]
[1772990402174,0.49061603,1941.0,1940.7,0.0011]
[1772990404082,0.49061603,1941.0,1940.7,0.50015219]
[1772990404402,1.7786536,1941.0,1940.7,0.50015219]
[1772990407780,0.47261689,1940.9,1940.7,0.0011]
[1772990409093,1.76065446,1941.0,1940.7,0.0011]
[1772990409276,1.76065446,1941.0,1940.7,0.48054706]
[1772990412508,0.47261689,1940.9,1940.7,0.0011]
[1772990412712,0.47261689,1940.7,1940.5,0.001]
[1772990414779,1.76087825,1940.6,1940.5,0.001]
[1772990416017,0.47261689,1940.6,1940.5,0.001]
[1772990416181,1.28823747,1940.7,1940.5,0.001]
[1772990416386,1.76085436,1940.7,1940.5,0.001]
[1772990417683,0.47261689,1940.6,1940.5,0.001]
[1772990419210,0.47261689,1940.5,1940.2,0.001]
[1772990419419,1.76098816,1940.5,1940.2,0.001]
[1772990419781,1.76098816,1940.5,1940.2,0.48044706]
[1772990420308,1.28817046,1940.8,1940.2,0.48044706]
[1772990420516,2.68017046,1940.8,1940.2,0.48044706]
[1772990420911,3.15278735,1940.8,1940.2,0.48044706]
[1772990422421,3.15278735,1940.8,1940.4,0.47944706]
[1772990422893,1.86461689,1940.8,1940.4,0.47944706]
[1772990423098,3.15275129,1940.8,1940.4,0.47944706]
[1772990423299,0.47261689,1940.7,1940.4,0.47944706]
[1772990423499,0.47261689,1940.7,1940.2,0.001]
[1772990423931,0.47261689,1940.7,1940.2,0.48044706]
[1772990424089,0.47261689,1940.7,1940.2,1.76897137]
[1772990424289,1.76086903,1940.7,1940.3,0.47944706]
[1772990424784,1.76086903,1940.7,1940.2,0.001]
[1772990424785,2.68220483,1940.7,1940.4,0.47944706]
[1772990426326,3.15482172,1940.7,1940.4,0.47944706]
[1772990426731,3.15482172,1940.7,1940.4,0.48054706]
[1772990427026,0.001,1940.6,1940.4,0.48054706]
[1772990430928,0.001,1940.6,1940.4,0.0011]
[1772990436729,0.49262537,1940.6,1940.4,0.0011]
[1772990438535,0.001,1940.6,1940.4,0.47753763]
[1772990439202,0.001,1940.5,1940.4,0.47753763]
[1772990439402,0.002,1940.9,1940.5,0.47643763]
[1772990439713,1.78171138,1940.9,1940.5,0.47643763]
[1772990442132,0.49162537,1940.8,1940.4,1.28948573]
[1772990442434,0.49162537,1940.8,1940.5,0.47643763]
[1772990447509,0.49162537,1940.7,1940.4,0.0011]
[1772990447708,1.77983975,1940.7,1940.4,0.0011]
[1772990447909,0.49162537,1940.7,1940.4,0.0011]
[1772990448223,0.49162537,1940.7,1940.4,0.47753763]
[1772990450441,0.001,1940.6,1940.4,0.47753763]
[1772990454446,0.49262537,1940.6,1940.4,0.0011]
[1772990454742,0.49262537,1940.6,1940.2,0.001]
[1772990455201,1.403,1940.6,1940.2,0.001]
[1772990455361,0.49162537,1940.5,1940.2,0.001]
[1772990455718,0.49162537,1940.3,1940.2,0.001]
[1772990458252,1.78008591,1940.3,1940.2,0.001]
[1772990458450,1.28846054,1940.3,1940.2,0.001]
[1772990458758,1.78008591,1940.3,1940.2,0.001]
[1772990460567,1.78008591,1940.3,1939.9,0.02677452]
[1772990460568,0.49162537,1940.2,1939.9,0.001]
[1772990460844,0.49162537,1940.1,1939.8,0.001]
[1772990461449,3.18307142,1940.4,1939.9,0.47643763]
[1772990461746,0.49162537,1940.3,1939.9,0.47643763]
[1772990462118,0.49162537,1940.3,1940.2,0.0011]
[1772990462448,0.49162537,1940.3,1940.0,0.0011]
[1772990463024,2.69244382,1940.4,1940.0,0.48110833]
[1772990463345,2.69239825,1940.4,1940.0,0.48110833]
[1772990463551,0.49044565,1940.3,1940.0,0.48110833]
[1772990463750,0.49044565,1940.3,1940.0,0.0011]
[1772990464263,0.49044565,1940.3,1940.0,0.48110833]
[1772990465228,0.001,1940.6,1940.1,0.48821354]
[1772990466149,0.46136652,1940.6,1940.1,0.48821354]
[1772990468522,0.46236652,1940.9,1940.2,1.28852695]
[1772990468738,0.46236652,1940.9,1940.3,0.48821354]
[1772990471352,0.46236652,1940.9,1940.5,0.48821354]
[1772990472567,1.75042922,1940.9,1940.5,0.48821354]
[1772990473943,1.2900627,1940.9,1940.5,0.48821354]
[1772990474153,0.46136652,1940.8,1940.5,0.48821354]
[1772990475177,0.46136652,1940.8,1940.1,0.0011]
[1772990475344,0.46036652,1940.4,1940.0,0.0011]
[1772990475860,0.46036652,1940.2,1940.0,0.0011]
[1772990476568,1.28846054,1940.3,1940.0,0.0011]
[1772990476569,0.46036652,1940.3,1940.0,0.0011]
[1772990481879,1.28852695,1940.2,1940.0,0.0011]
[1772990485478,1.28852695,1940.2,1940.1,0.0011]
[1772990485774,1.28952695,1940.2,1940.1,0.0011]
[1772990487275,1.74989347,1940.2,1940.1,0.0011]
[1772990488765,1.74989347,1940.2,1940.0,0.0011]
[1772990490058,0.46036652,1940.1,1940.0,0.0011]
[1772990491163,0.46036652,1940.1,1939.8,0.001]
[1772990491366,0.46036652,1940.1,1939.5,0.48921354]
[1772990491367,0.46036652,1940.0,1939.5,0.48921354]
[1772990491577,1.03258069,1940.0,1939.5,0.001]
[1772990491765,0.46036652,1939.9,1939.5,0.001]
[1772990492083,0.46036652,1939.7,1939.5,0.001]
[1772990492448,0.46036652,1939.6,1939.1,0.06011668]
[1772990492653,0.46036652,1939.5,1938.8,0.48821354]
[1772990493549,0.46036652,1939.5,1938.9,1.28939089]
[1772990493756,0.46036652,1939.5,1938.9,0.47687921]
[1772990494785,0.46348303,1939.3,1938.9,0.47687921]
[1772990496086,1.75252348,1939.5,1939.0,0.47687921]
[1772990497091,1.75252348,1939.5,1939.0,1.28930064]
[1772990497290,1.75252348,1939.5,1939.1,0.47687921]
[1772990497882,0.001,1939.4,1939.1,0.47687921]
[1772990498781,3.16036877,1939.7,1939.1,0.47687921]
[1772990498981,1.75228863,1939.8,1939.1,0.47687921]
[1772990499185,1.75228863,1939.8,1939.3,0.47687921]
[1772990502901,1.75228863,1939.8,1939.2,0.47687921]
[1772990502902,0.46348303,1939.7,1939.2,0.47687921]
[1772990503886,0.46348303,1939.7,1939.0,1.28932439]
[1772990504194,0.46348303,1939.7,1939.1,0.47687921]
[1772990505407,1.75240858,1939.6,1939.2,0.47687921]
[1772990506506,1.75238183,1939.7,1939.2,0.47687921]
[1772990506909,0.46348303,1939.6,1939.2,0.47687921]
[1772990507412,1.87048303,1939.9,1939.3,1.28912494]
[1772990507711,3.15921025,1939.9,1939.4,0.47687921]
[1772990507882,0.46348303,1939.8,1939.4,0.47687921]
[1772990509912,0.001,1939.7,1939.4,1.76591547]
[1772990511988,0.001,1939.7,1939.5,0.47687921]
[1772990512189,1.2902063,1940.0,1939.5,0.47687921]
[1772990512582,1.2902322,1940.0,1939.5,0.47687921]
[1772990512809,0.00153886,1940.0,1939.5,0.47687921]
[1772990513191,1.2902323,1940.0,1939.5,0.47687921]
[1772990513402,0.00153886,1940.0,1939.5,0.47687921]
[1772990513984,0.00153886,1940.0,1939.7,0.47687921]
[1772990514289,0.46502189,1940.0,1939.7,0.47687921]
[1772990514689,0.46502189,1940.0,1939.5,1.76582196]
[1772990515286,0.46502189,1940.0,1939.6,0.47687921]
[1772990516314,1.7536971,1940.0,1939.6,0.47687921]
[1772990516921,0.46502189,1940.0,1939.7,0.47687921]
[1772990517222,1.75368832,1940.0,1939.7,0.47687921]
[1772990521821,0.001,1939.9,1939.7,0.47687921]
[1772990525328,0.001,1939.9,1939.6,0.45647978]
[1772990525920,0.001,1939.9,1939.5,1.29005729]
[1772990525921,0.46589572,1939.8,1939.5,0.0011]
[1772990526827,0.001,1939.9,1939.6,0.45647978]
[1772990527618,0.46689572,1939.9,1939.6,0.45647978]
[1772990529624,0.001,1939.9,1939.7,0.45647978]
[1772990533946,0.001,1939.9,1939.8,0.0011]
[1772990534726,0.001,1939.9,1939.8,0.45757978]
[1772990535026,0.001,1939.9,1939.8,0.0011]
[1772990535620,0.46689572,1939.9,1939.8,0.0011]
[1772990537637,1.75562194,1939.9,1939.8,0.0011]
[1772990539835,0.46689572,1939.9,1939.8,0.0011]
[1772990540841,1.75562194,1939.9,1939.8,0.0011]
[1772990541950,0.46743458,1940.0,1939.8,0.0011]
[1772990542118,1.75609776,1940.0,1939.8,0.0011]
[1772990542751,0.46743458,1940.0,1939.8,0.0011]
[1772990542922,0.00153886,1940.0,1939.8,0.45757978]
[1772990543122,1.29020574,1940.0,1939.8,0.45757978]
[1772990544252,0.00153886,1940.0,1939.8,0.45757978]
[1772990548655,1.29020866,1940.0,1939.8,0.45757978]
[1772990548830,0.46589572,1939.9,1939.8,0.0011]
[1772990549725,0.46589572,1939.9,1939.5,0.0011]
[1772990551063,0.46589572,1939.8,1939.5,0.0011]
[1772990551264,0.46589572,1939.6,1939.2,0.0011]
[1772990553263,0.49424949,1939.5,1939.2,0.4770542]
[1772990553468,1.28895828,1939.6,1939.2,0.4770542]
[1772990554130,5.64971708,1939.7,1939.2,0.4770542]
[1772990554325,1.2889111,1939.7,1939.2,0.4770542]
[1772990554532,3.20209309,1939.8,1939.2,0.4770542]
[1772990555543,0.49424949,1939.7,1939.2,1.29025665]
[1772990555742,0.49424949,1939.7,1939.3,0.4759542]
[1772990558158,1.78311991,1939.7,1939.4,0.4759542]
[1772990558362,0.001,1939.5,1939.4,0.4759542]
[1772990566072,0.49524949,1939.5,1939.3,0.0011]
[1772990566279,0.49424949,1939.4,1939.0,0.4770542]
[1772990566477,0.49424949,1939.4,1939.0,0.0011]
[1772990566646,0.49424949,1939.2,1939.0,0.0011]
[1772990568152,1.78350437,1939.2,1939.0,0.0011]
[1772990570454,1.78350437,1939.2,1939.1,0.0011]
[1772990573591,0.49424949,1939.1,1938.9,0.0011]
[1772990573974,2.71017748,1939.3,1938.9,0.4770542]
[1772990574575,3.20442697,1939.3,1938.9,0.4770542]
[1772990575990,1.421,1939.3,1938.9,1.76644216]
[1772990576178,9.90536634,1939.5,1939.0,0.4759542]
[1772990576490,1.28910867,1939.4,1939.0,0.4759542]
[1772990576678,1.78335816,1939.4,1939.0,0.4759542]
[1772990578281,0.49424949,1939.3,1939.0,0.4759542]
[1772990578678,0.49424949,1939.3,1938.9,0.0011]
[1772990580787,1.7834409,1939.2,1938.9,0.0011]
[1772990580990,0.49424949,1939.1,1938.9,0.0011]
[1772990581290,0.49424949,1939.1,1938.8,0.4770542]
[1772990582487,5.15676323,1939.3,1938.8,0.4770542]
[1772990582488,1.78340384,1939.3,1939.0,0.0011]
[1772990582788,0.001,1939.2,1939.0,0.4759542]
[1772990583486,1.28999515,1939.5,1939.1,0.48115784]
[1772990583990,0.45201114,1939.4,1939.1,0.48115784]
[1772990590600,1.28999515,1939.5,1939.1,1.7704088]
[1772990590601,0.4884307,1939.5,1939.1,1.7704088]
[1772990590990,1.77742715,1939.5,1939.2,0.49025617]
[1772990592994,1.77742715,1939.5,1939.3,0.49025617]
[1772990592995,0.001,1939.5,1939.3,0.49025617]
[1772990594195,1.28999689,1939.5,1939.0,1.28927625]
[1772990594397,1.77742759,1939.5,1939.1,0.49025617]
[1772990595002,0.4884307,1939.5,1939.2,0.49025617]
[1772990595580,0.001,1939.3,1939.2,0.49025617]
[1772990597787,0.001,1939.3,1939.1,1.29030489]
[1772990597788,0.001,1939.3,1939.1,0.49135617]
[1772990598607,0.001,1939.3,1939.1,0.44135617]
[1772990600600,0.001,1939.5,1939.2,1.28919141]
[1772990600801,0.001,1939.5,1939.3,0.49025617]
[1772990603379,0.001,1939.5,1939.4,0.49025617]
[1772990603776,1.432,1939.9,1939.5,0.49025617]
[1772990604104,0.4874307,1939.8,1939.4,0.49025617]
[1772990606289,1.432,1939.9,1939.6,0.49025617]
[1772990606696,2.72073651,1939.9,1939.6,0.49025617]
[1772990606894,1.9194307,1939.9,1939.6,0.49025617]
[1772990607294,3.20816029,1939.9,1939.6,0.49025617]
[1772990607706,0.001,1939.7,1939.6,0.49025617]
[1772990608804,0.001,1939.7,1939.4,0.49025617]
[1772990609409,0.001,1939.7,1939.2,0.49135617]
[1772990609410,0.4884307,1939.7,1939.2,0.49135617]
[1772990610602,1.77635625,1939.6,1939.2,1.7805458]
[1772990611306,1.77635625,1939.6,1939.2,0.49135617]
[1772990612011,0.4874307,1939.5,1939.2,0.0011]
[1772990614318,1.77647257,1939.5,1939.2,0.0011]
[1772990615090,1.77647257,1939.5,1939.2,0.48617018]
[1772990617620,0.4874307,1939.5,1939.2,0.48617018]
[1772990618116,5.15653597,1939.7,1939.3,0.48507018]
[1772990618316,1.28986036,1939.7,1939.3,0.48507018]
[1772990618520,1.74791302,1939.7,1939.3,0.48507018]
[1772990619996,1.74791302,1939.7,1939.3,0.48617018]
[1772990620296,0.001,1939.4,1939.3,0.48617018]
[1772990623897,0.001,1939.4,1939.3,0.0011]
[1772990624096,0.45905266,1939.4,1939.3,0.0011]
[1772990624298,0.45905266,1939.4,1939.0,0.0011]
[1772990624710,0.45905266,1939.4,1939.0,0.48617018]
[1772990625512,0.45905266,1939.4,1939.0,1.77548595]
[1772990626008,1.74811144,1939.4,1939.0,1.77548595]
[1772990626206,0.45905266,1939.4,1939.0,1.29041577]
[1772990626437,0.001,1939.4,1939.1,0.48507018]
[1772990628131,0.001,1939.4,1939.2,0.48507018]
[1772990630337,1.29005847,1939.4,1939.2,0.48507018]
[1772990630830,1.29005847,1939.4,1939.1,0.48507018]
[1772990631038,0.45805266,1939.3,1939.0,0.0011]
[1772990631617,0.45805266,1939.3,1939.0,0.48617018]
[1772990632838,0.45905266,1939.3,1939.0,0.48617018]
[1772990633131,0.45905266,1939.3,1939.2,0.0011]
[1772990633306,1.7481776,1939.3,1939.2,0.0011]
[1772990633632,1.7481776,1939.3,1939.0,0.48617018]
[1772990633833,0.45805266,1939.2,1939.0,0.0011]
[1772990634938,1.74725212,1939.2,1939.0,0.0011]
[1772990635238,0.45805266,1939.1,1939.0,0.0011]
[1772990637734,0.45805266,1939.2,1939.0,0.0011]
[1772990639642,1.74728197,1939.2,1939.0,0.0011]
[1772990644746,1.74728197,1939.2,1939.1,0.0011]
[1772990647053,0.49614769,1939.1,1938.9,0.0011]
[1772990651056,0.49614769,1939.0,1938.9,0.0011]
[1772990651758,1.28930663,1939.1,1938.9,0.0011]
[1772990652256,1.78545432,1939.1,1938.9,0.0011]
[1772990652966,0.49614769,1939.0,1938.7,0.0011]
[1772990654628,0.49614769,1938.8,1938.3,0.48375452]
[1772990654832,0.49614769,1938.8,1938.2,0.48375452]
[1772990655034,0.49614769,1938.6,1938.2,0.48375452]
[1772990655339,0.49614769,1938.6,1938.0,0.00153886]
[1772990655340,0.49614769,1938.6,1938.1,0.48375452]
[1772990656632,0.49614769,1938.6,1938.5,0.0011]
[1772990656828,0.49614769,1938.6,1938.1,0.48375452]
[1772990657233,1.28965695,1938.5,1938.1,0.48375452]
[1772990657452,0.49614769,1938.4,1938.1,0.48375452]
[1772990659184,1.28963656,1938.6,1938.1,1.28990784]
[1772990659388,0.49614769,1938.5,1938.2,0.48375452]
[1772990660177,0.48834769,1938.5,1938.2,0.48375452]
[1772990662367,1.28960627,1938.6,1938.2,1.28983753]
[1772990662565,1.78575396,1938.6,1938.3,0.48375452]
[1772990664754,1.93714769,1938.7,1938.4,0.48375452]
[1772990664961,3.22667469,1938.7,1938.4,0.48375452]
[1772990665147,0.49614769,1938.6,1938.0,0.48529338]
[1772990665526,0.49614769,1938.3,1938.0,0.00153886]
[1772990666645,0.49614769,1938.1,1938.0,0.00153886]
[1772990668876,0.49614769,1938.1,1938.0,0.00263886]
[1772990669063,1.78607081,1938.1,1938.0,0.00263886]
[1772990669264,0.49614769,1938.0,1937.5,1.29027818]
[1772990669467,0.49614769,1938.0,1937.5,1.7740327]
[1772990669647,0.49614769,1937.9,1937.2,1.77427692]
[1772990669847,0.49614769,1937.9,1937.3,0.48375452]
[1772990671660,0.49614769,1937.7,1937.3,1.77420608]
[1772990672283,0.49614769,1937.7,1937.3,0.48375452]
[1772990672684,0.49614769,1937.7,1937.3,1.77420774]
[1772990673151,0.49614769,1937.7,1937.3,1.29045322]
[1772990673351,0.49614769,1937.7,1937.3,1.75080909]
[1772990673578,1.77397513,1938.1,1937.4,0.46035587]
[1772990673764,0.48401458,1938.1,1937.6,0.46035587]
[1772990674075,0.48401458,1938.1,1937.4,1.75069409]
[1772990674381,0.48401458,1938.1,1937.4,1.75074093]
[1772990675955,0.48401458,1937.9,1937.5,0.46035587]
[1772990677683,0.48401458,1937.9,1937.3,0.46035587]
[1772990677879,1.29012281,1937.8,1937.3,1.29044092]
[1772990678089,0.48401458,1937.7,1937.4,0.46035587]
[1772990678781,1.92901458,1937.9,1937.4,0.46035587]
[1772990679082,1.445,1937.9,1937.4,0.46035587]
[1772990679779,1.92901458,1937.9,1937.4,0.46035587]
[1772990680461,0.48401458,1938.2,1937.6,0.46035587]
[1772990682593,0.48401458,1938.3,1937.8,0.46035587]
[1772990683857,0.48401458,1938.3,1937.6,1.29020652]
[1772990683858,0.48401458,1938.3,1937.6,0.46035587]
[1772990684061,0.48401458,1938.3,1937.4,1.75179408]
[1772990684062,0.48401458,1938.2,1937.4,1.75179408]
[1772990684270,0.48401458,1938.2,1937.4,0.46145587]
[1772990684473,0.48401458,1938.0,1937.4,0.46145587]
[1772990686410,0.48401458,1938.0,1937.5,0.46035587]
[1772990687190,1.77407082,1937.9,1937.5,0.46035587]
[1772990687712,0.48401458,1937.8,1937.5,0.46035587]
[1772990688510,1.77400566,1938.0,1937.5,1.2903133]
[1772990688816,0.48401458,1937.9,1937.6,0.46035587]
[1772990689201,1.77396987,1938.1,1937.7,0.46035587]
[1772990689574,0.48401458,1938.1,1937.7,0.46035587]
[1772990691612,1.77393825,1938.1,1937.7,0.46035587]
[1772990691818,0.48401458,1938.0,1937.7,0.46035587]
[1772990692488,0.48401458,1938.0,1937.4,0.0011]
[1772990692489,0.001,1937.7,1937.5,0.46035587]
[1772990692692,0.48501458,1937.7,1937.4,0.46145587]
[1772990692886,0.001,1937.7,1937.5,0.46035587]
[1772990693301,0.48401458,1938.0,1937.5,0.46035587]
[1772990693695,1.77403251,1938.0,1937.6,0.46035587]
[1772990694242,0.48501458,1938.4,1937.6,0.46035587]
[1772990694390,0.48401458,1938.3,1937.6,0.46035587]
[1772990695312,0.001,1938.4,1937.6,0.46035587]
[1772990695695,0.001,1938.4,1937.8,0.46035587]
[1772990696421,0.00153886,1939.0,1937.8,0.46035587]
[1772990696622,0.00153886,1939.0,1938.2,0.46035587]
[1772990696926,0.00153886,1939.0,1938.3,0.46035587]
[1772990697812,1.77414489,1939.3,1939.1,0.46035587]
[1772990697813,0.001,1939.3,1939.1,0.46035587]
[1772990698122,0.001,1939.3,1938.5,0.46035587]
[1772990699929,0.001,1939.3,1938.7,0.46035587]
[1772990701003,0.48501458,1939.3,1938.7,0.46035587]
[1772990701535,0.001,1939.3,1938.7,0.46035587]
[1772990701706,0.48501458,1939.3,1938.7,0.46035587]
[1772990701906,0.48401458,1939.1,1938.5,1.74997275]
[1772990702122,0.48401458,1939.1,1938.2,1.28985656]
[1772990702432,0.48401458,1939.1,1938.2,1.75021243]
[1772990702599,0.48401458,1939.1,1938.3,0.46035587]
[1772990703906,1.28932439,1939.0,1938.4,1.28972348]
[1772990704103,0.4950398,1939.1,1938.5,0.45011562]
[1772990704501,0.001,1939.0,1938.5,0.45011562]
[1772990705732,0.46755247,1939.3,1938.5,0.45011562]
[1772990705733,0.001,1939.3,1938.5,0.45260012]
[1772990706096,0.001,1939.3,1938.7,0.45260012]
[1772990708103,0.001,1939.3,1938.9,0.45260012]
[1772990708331,0.001,1939.7,1939.0,0.45260012]
[1772990708516,0.001,1939.7,1938.9,0.45260012]
[1772990708517,0.46655247,1939.6,1938.9,0.45260012]
[1772990710324,0.46655247,1939.4,1939.0,1.28932439]
[1772990710932,0.46655247,1939.4,1938.9,1.74193991]
[1772990711528,0.46655247,1939.4,1938.9,1.28933979]
[1772990711738,0.46655247,1939.4,1938.8,1.28941145]
[1772990712043,0.46655247,1939.4,1938.3,0.45260012]
[1772990712208,0.46655247,1939.2,1938.5,0.45260012]
[1772990715436,0.46655247,1939.2,1938.6,1.28959042]
[1772990715638,0.46655247,1939.2,1938.6,1.74219054]
[1772990716338,1.75574719,1939.2,1938.6,1.74219054]
[1772990716637,0.46655247,1939.5,1938.7,0.45260012]
[1772990717337,0.001,1939.1,1938.7,0.45260012]
[1772990717533,0.001,1939.1,1938.9,0.45260012]
[1772990717909,0.46755247,1939.1,1938.6,5.15821533]
[1772990718242,0.46755247,1939.1,1938.6,5.61081545]
[1772990718934,0.001,1939.1,1938.7,0.45260012]
[1772990721539,0.001,1939.1,1938.8,1.74205751]
[1772990721835,0.46755247,1939.1,1938.7,1.28947759]
[1772990722922,0.001,1939.1,1938.7,1.74207771]
[1772990723714,0.001,1939.1,1938.8,0.45260012]
[1772990726548,0.001,1939.1,1939.0,0.45260012]
[1772990728413,0.001,1939.1,1939.0,1.74192451]
[1772990728829,0.001,1939.1,1939.0,1.28932439]
[1772990729036,0.001,1939.1,1938.9,5.15748053]
[1772990729037,0.001,1939.1,1938.9,1.28934628]
[1772990729342,0.001,1939.1,1938.9,1.7419464]
[1772990729544,0.001,1939.3,1939.0,0.45260012]
[1772990731331,0.46755247,1939.3,1938.8,1.74205751]
[1772990732348,0.46755247,1939.3,1938.7,1.29061135]
[1772990732548,0.001,1939.3,1938.8,0.45260012]
[1772990733337,0.001,1939.3,1939.0,0.48499437]
[1772990734143,0.48217936,1939.3,1939.0,0.48499437]
[1772990735636,0.48217936,1939.3,1939.0,1.77428352]
[1772990742351,0.001,1939.2,1939.0,1.77428352]
[1772990745264,0.48217936,1939.2,1938.9,0.0011]
[1772990745443,0.48217936,1939.2,1938.9,1.77548112]
[1772990748360,0.48217936,1939.2,1938.9,0.48609437]
[1772990748563,0.48217936,1939.2,1938.9,1.29047613]
[1772990750274,0.48117936,1939.1,1938.9,0.0011]
[1772990750643,0.48117936,1939.1,1938.9,1.29049048]
[1772990751456,0.48117936,1939.1,1938.9,0.0011]
[1772990753878,0.48117936,1939.0,1938.9,0.0011]
[1772990754278,0.48117936,1939.1,1938.9,0.0011]
[1772990756279,0.48117936,1939.1,1939.0,0.0011]
[1772990756450,0.48217936,1939.1,1939.0,0.0011]
[1772990759579,1.77143726,1939.1,1939.0,0.0011]
[1772990759778,0.48117936,1939.0,1938.8,0.0011]
[1772990761582,0.48117936,1938.9,1938.8,0.0011]
[1772990762490,0.48117936,1938.9,1938.5,0.0011]
[1772990762788,0.48117936,1938.9,1938.3,0.0011]
[1772990762999,1.03433294,1938.8,1938.1,0.0011]
[1772990763298,0.48780884,1938.5,1937.8,0.49423628]
[1772990763460,0.48780884,1938.4,1937.9,0.49423628]
[1772990763661,1.28979002,1938.3,1937.9,0.49423628]
[1772990763868,1.77759886,1938.3,1937.9,0.49423628]
[1772990764080,1.28979002,1938.3,1937.9,0.49423628]
[1772990764274,0.48780884,1938.2,1937.9,0.49423628]
[1772990765185,0.47818929,1938.4,1938.0,0.47287359]
[1772990765386,1.416,1938.8,1938.0,0.47287359]
[1772990765591,0.47818929,1938.7,1938.0,0.47287359]
[1772990766357,1.76777971,1938.6,1938.2,0.47287359]
[1772990767685,0.47818929,1938.6,1938.2,0.47287359]
[1772990768991,1.76758018,1938.9,1938.4,0.47287359]
[1772990770289,0.001,1938.5,1938.4,0.47287359]
[1772990771457,0.47918929,1938.5,1938.0,0.47287359]
[1772990773571,1.28972348,1938.4,1938.0,0.47287359]
[1772990773775,1.76791277,1938.4,1938.0,0.47287359]
[1772990773994,0.47818929,1938.3,1937.9,0.0011]
[1772990775574,1.7680427,1938.3,1937.9,0.0011]
[1772990775972,0.47818929,1938.2,1937.9,0.0011]
[1772990777588,1.28992312,1938.1,1937.9,0.0011]
[1772990778075,1.76811241,1938.1,1937.9,0.0011]
[1772990778271,0.47818929,1938.1,1937.9,0.0011]
[1772990779971,0.47818929,1938.0,1937.9,0.0011]
[1772990782491,0.47918929,1938.0,1937.9,0.0011]
[1772990782671,0.001,1938.0,1937.9,0.47397359]
[1772990782871,0.001,1938.0,1937.9,0.0011]
[1772990786884,0.47918929,1938.0,1937.9,0.0011]
[1772990787596,0.001,1938.0,1937.9,0.0011]
[1772990789210,0.47918929,1938.0,1937.9,0.0011]
[1772990789518,0.47918929,1938.0,1937.7,0.47397359]
[1772990792392,1.76921964,1938.0,1937.7,0.47397359]
[1772990794295,1.76921964,1938.0,1937.8,0.0011]
[1772990798316,0.001,1938.0,1937.9,0.4909282]
[1772990802624,1.28983519,1938.3,1937.8,1.29116183]
[1772990802828,1.28983519,1938.3,1937.9,0.4909282]
[1772990803520,3.19564114,1938.4,1938.0,0.4909282]
[1772990803813,1.76864114,1938.4,1938.0,0.4909282]
[1772990804918,1.28972806,1938.4,1938.1,0.4909282]
[1772990806107,1.76864114,1938.4,1938.1,0.4909282]
[1772990806626,0.001,1938.3,1938.2,0.4909282]
[1772990807518,0.001,1938.3,1938.2,1.78078476]
[1772990807824,0.001,1938.5,1938.3,0.4909282]
[1772990812832,1.429,1938.8,1938.4,0.4909282]
[1772990813031,1.3399766,1939.0,1938.4,0.4909282]
[1772990813498,0.05063861,1939.0,1938.4,0.4909282]
[1772990814210,1.33999795,1939.0,1938.4,0.4909282]
[1772990815130,0.05063861,1939.0,1938.6,0.4909282]
[1772990815830,1.33997783,1939.0,1938.6,0.4909282]
[1772990816604,0.05063861,1939.0,1938.6,0.4909282]
[1772990817202,0.05063861,1939.0,1938.7,0.4909282]
[1772990817842,0.00153886,1939.0,1938.7,0.4909282]
[1772990818130,0.001,1939.1,1938.7,0.4909282]
[1772990818323,0.001,1938.9,1938.7,0.4909282]
[1772990819112,0.001,1939.1,1938.9,0.4909282]
[1772990819304,0.001,1939.3,1939.0,0.4909282]
[1772990820541,0.05163861,1939.7,1938.9,0.4909282]
[1772990820710,1.34050271,1939.7,1938.9,0.4909282]
[1772990821627,0.001,1939.7,1939.1,0.4909282]
[1772990824538,0.37957496,1940.0,1939.3,0.47939707]
[1772990824841,0.00153886,1940.0,1939.3,0.47939707]
[1772990825016,0.05317747,1940.0,1939.3,0.47939707]
[1772990825644,0.00153886,1940.0,1939.3,0.47939707]
[1772990826909,0.00153886,1940.0,1939.5,0.47890614]
[1772990828811,0.05317747,1940.0,1939.6,1.28892555]
[1772990829121,0.05163861,1939.9,1939.6,0.47890614]
[1772990829723,0.05163861,1939.9,1939.5,0.47890614]